[Event "Rapid Tournament (RAP)"]
[Site "Biel, Switzerland"]
[Date "2026.07.12"]
[Round "9.19"]
[White "Erne, Raphael"]
[Black "Aryan, Goyal"]
[Result "0-1"]
[TimeControl "15 + 5"]
[WhiteTitle "-"]
[BlackTitle "-"]
[WhiteFideId "1341928"]
[BlackFideId "366108825"]
[WhiteElo "2122"]
[BlackElo "1869"]

1. c4 {[%clk 00:15:07]} {[%emt 00:00:03]} Nf6 {[%clk 00:15:08]} {[%emt
00:00:04]} 2. g3 {[%clk 00:15:09]} e6 {[%clk 00:15:11]} {[%emt 00:00:01]} 3.
Bg2 {[%clk 00:15:11]} {[%emt 00:00:05]} d5 {[%clk 00:15:14]} 4. Nf3 {[%clk
00:15:13]} {[%emt 00:00:03]} Be7 {[%clk 00:15:14]} {[%emt 00:00:03]} 5. d4
{[%clk 00:15:16]} {[%emt 00:00:05]} O-O {[%clk 00:15:16]} {[%emt 00:00:02]} 6.
Qc2 {[%clk 00:15:19]} {[%emt 00:00:03]} dxc4 {[%clk 00:15:10]} {[%emt
00:00:10]} 7. O-O {[%clk 00:14:46]} {[%emt 00:00:38]} a6 {[%clk 00:15:11]}
{[%emt 00:00:03]} 8. a4 {[%clk 00:14:42]} {[%emt 00:00:11]} Bd7 {[%clk
00:15:07]} {[%emt 00:00:08]} 9. Ne5 {[%clk 00:13:12]} {[%emt 00:01:35]} Nc6
{[%clk 00:14:31]} {[%emt 00:00:41]} 10. Nxc6 {[%clk 00:11:47]} {[%emt
00:01:31]} Bxc6 {[%clk 00:14:33]} {[%emt 00:00:03]} 11. Bxc6 {[%clk 00:11:50]}
{[%emt 00:00:02]} bxc6 {[%clk 00:14:36]} {[%emt 00:00:01]} 12. Qxc4 {[%clk
00:11:18]} {[%emt 00:00:37]} Qd5 {[%clk 00:14:40]} {[%emt 00:00:01]} 13. Qd3
{[%clk 00:09:54]} {[%emt 00:01:29]} Rfd8 {[%clk 00:14:15]} {[%emt 00:00:30]} 14.
e3 {[%clk 00:08:13]} {[%emt 00:01:45]} c5 {[%clk 00:14:04]} {[%emt 00:00:17]}
15. Nc3 {[%clk 00:08:04]} {[%emt 00:00:14]} Qh5 {[%clk 00:13:10]} {[%emt
00:00:59]} 16. Qe2 {[%clk 00:05:58]} {[%emt 00:02:11]} cxd4 {[%clk 00:12:42]}
{[%emt 00:00:33]} 17. exd4 {[%clk 00:05:53]} {[%emt 00:00:10]} Rxd4 {[%clk
00:12:22]} {[%emt 00:00:25]} 18. Qxh5 {[%clk 00:05:52]} {[%emt 00:00:06]} Nxh5
{[%clk 00:12:26]} {[%emt 00:00:01]} 19. Be3 {[%clk 00:05:42]} {[%emt 00:00:15]}
Rb4 {[%clk 00:12:10]} {[%emt 00:00:21]} 20. Rac1 {[%clk 00:05:05]} {[%emt
00:00:42]} Rxb2 {[%clk 00:11:48]} {[%emt 00:00:27]} 21. Ne4 {[%clk 00:05:02]}
{[%emt 00:00:08]} Rb7 {[%clk 00:11:16]} {[%emt 00:00:37]} 22. Rfd1 {[%clk
00:04:22]} {[%emt 00:00:46]} Nf6 {[%clk 00:11:02]} {[%emt 00:00:18]} 23. Nxf6+
{[%clk 00:04:12]} {[%emt 00:00:15]} Bxf6 {[%clk 00:11:06]} {[%emt 00:00:02]} 24.
Rd7 {[%clk 00:04:13]} {[%emt 00:00:03]} Be5 {[%clk 00:10:44]} {[%emt 00:00:27]}
25. Rcd1 {[%clk 00:03:53]} {[%emt 00:00:25]} Rbb8 {[%clk 00:09:42]} {[%emt
00:01:06]} 26. Bc5 {[%clk 00:03:27]} {[%emt 00:00:32]} Rc8 {[%clk 00:09:04]}
{[%emt 00:00:44]} 27. f4 {[%clk 00:02:18]} {[%emt 00:01:14]} Bf6 {[%clk
00:09:02]} {[%emt 00:00:06]} 28. Rc1 {[%clk 00:01:52]} {[%emt 00:00:30]} Rab8
{[%clk 00:06:56]} {[%emt 00:02:12]} 29. Be7 {[%clk 00:01:45]} {[%emt 00:00:11]}
Bxe7 {[%clk 00:05:56]} {[%emt 00:01:06]} 30. Rxe7 {[%clk 00:01:49]} {[%emt
00:00:01]} Kf8 {[%clk 00:05:50]} {[%emt 00:00:11]} 31. Rexc7 {[%clk 00:01:03]}
{[%emt 00:00:51]} Rxc7 {[%clk 00:05:55]} 32. Rxc7 {[%clk 00:01:06]} Rb4 {[%clk
00:05:58]} {[%emt 00:00:02]} 33. Ra7 {[%clk 00:00:16]} {[%emt 00:00:55]} Rxa4
{[%clk 00:06:02]} {[%emt 00:00:02]} 34. Kg2 {[%clk 00:00:20]} Ra2+ {[%clk
00:06:03]} {[%emt 00:00:04]} 35. Kh3 {[%clk 00:00:20]} {[%emt 00:00:04]} a5
{[%clk 00:05:42]} {[%emt 00:00:28]} 36. g4 {[%clk 00:00:14]} {[%emt 00:00:10]}
a4 {[%clk 00:05:18]} {[%emt 00:00:28]} 37. Kg3 {[%clk 00:00:09]} {[%emt
00:00:10]} a3 {[%clk 00:05:00]} {[%emt 00:00:24]} 38. h3 {[%clk 00:00:07]}
{[%emt 00:00:07]} Ra1 {[%clk 00:04:25]} {[%emt 00:00:40]} 39. Ra8+ {[%clk
00:00:08]} {[%emt 00:00:05]} Ke7 {[%clk 00:04:29]} 40. Ra7+ {[%clk 00:00:12]}
{[%emt 00:00:01]} Kd6 {[%clk 00:04:25]} {[%emt 00:00:06]} 41. Ra6+ {[%clk
00:00:08]} {[%emt 00:00:11]} Kc5 {[%clk 00:04:27]} {[%emt 00:00:02]} 42. Ra5+
{[%clk 00:00:06]} {[%emt 00:00:08]} Kb4 {[%clk 00:04:30]} {[%emt 00:00:02]} 43.
Ra7 {[%clk 00:00:10]} Kb3 {[%clk 00:04:08]} {[%emt 00:00:26]} 44. Rxf7 {[%clk
00:00:08]} {[%emt 00:00:08]} a2 {[%clk 00:03:31]} {[%emt 00:00:42]} 45. Rb7+
{[%clk 00:00:10]} {[%emt 00:00:03]} Kc4 {[%clk 00:03:35]} 46. Ra7 {[%clk
00:00:06]} {[%emt 00:00:10]} Rg1+ {[%clk 00:03:36]} {[%emt 00:00:03]} 0-1

[Event "Rapid Tournament (RAP)"]
[Site "Biel, Switzerland"]
[Date "2026.07.12"]
[Round "9.20"]
[White "Menzi, Jonas"]
[Black "Kwiatkowski, Maciej"]
[Result "1-0"]
[TimeControl "15 + 5"]
[WhiteTitle "-"]
[BlackTitle "-"]
[WhiteFideId "1345133"]
[BlackFideId "1360175"]
[WhiteElo "2114"]
[BlackElo "1902"]

1. e4 {[%clk 00:15:09]} {[%emt 00:00:01]} c5 {[%clk 00:15:09]} {[%emt
00:00:01]} 2. Nf3 {[%clk 00:15:11]} {[%emt 00:00:03]} e6 {[%clk 00:15:12]} 3.
c4 {[%clk 00:15:12]} {[%emt 00:00:06]} Nc6 {[%clk 00:15:08]} {[%emt 00:00:08]}
4. Nc3 {[%clk 00:15:15]} {[%emt 00:00:02]} a6 {[%clk 00:15:11]} {[%emt
00:00:02]} 5. d4 {[%clk 00:15:14]} {[%emt 00:00:06]} cxd4 {[%clk 00:15:13]}
{[%emt 00:00:03]} 6. Nxd4 {[%clk 00:15:17]} {[%emt 00:00:01]} Qc7 {[%clk
00:15:04]} {[%emt 00:00:15]} 7. Be2 {[%clk 00:14:22]} {[%emt 00:00:59]} Nf6
{[%clk 00:15:07]} {[%emt 00:00:03]} 8. Be3 {[%clk 00:13:20]} {[%emt 00:01:06]}
Bb4 {[%clk 00:14:54]} {[%emt 00:00:19]} 9. f3 {[%clk 00:13:08]} {[%emt
00:00:16]} O-O {[%clk 00:14:52]} {[%emt 00:00:07]} 10. O-O {[%clk 00:13:07]}
{[%emt 00:00:05]} Ne5 {[%clk 00:14:03]} {[%emt 00:00:55]} 11. Rc1 {[%clk
00:12:32]} {[%emt 00:00:41]} Be7 {[%clk 00:08:06]} {[%emt 00:06:02]} 12. Na4
{[%clk 00:10:19]} {[%emt 00:02:17]} d6 {[%clk 00:07:47]} {[%emt 00:00:25]} 13.
Qd2 {[%clk 00:07:19]} {[%emt 00:03:04]} Bd7 {[%clk 00:07:23]} {[%emt 00:00:29]}
14. Nc3 {[%clk 00:07:22]} {[%emt 00:00:02]} Rac8 {[%clk 00:06:55]} {[%emt
00:00:33]} 15. Rfd1 {[%clk 00:06:29]} {[%emt 00:00:58]} Rfe8 {[%clk 00:06:51]}
{[%emt 00:00:10]} 16. Kh1 {[%clk 00:06:21]} {[%emt 00:00:10]} Nxc4 {[%clk
00:05:19]} {[%emt 00:01:39]} 17. Bxc4 {[%clk 00:06:23]} {[%emt 00:00:03]} Qxc4
{[%clk 00:05:23]} {[%emt 00:00:01]} 18. Nd5 {[%clk 00:06:27]} {[%emt 00:00:02]}
Qxa2 {[%clk 00:05:13]} {[%emt 00:00:15]} 19. Nxe7+ {[%clk 00:04:22]} {[%emt
00:02:10]} Rxe7 {[%clk 00:05:15]} {[%emt 00:00:03]} 20. Ra1 {[%clk 00:04:25]}
Qc4 {[%clk 00:04:47]} {[%emt 00:00:33]} 21. Rdc1 {[%clk 00:04:29]} Qc5 {[%clk
00:02:25]} {[%emt 00:02:27]} 22. Rxc5 {[%clk 00:04:31]} {[%emt 00:00:04]} dxc5
{[%clk 00:02:29]} {[%emt 00:00:01]} 23. Ne2 {[%clk 00:03:49]} {[%emt 00:00:46]}
c4 {[%clk 00:02:23]} {[%emt 00:00:12]} 24. Bg5 {[%clk 00:03:39]} {[%emt
00:00:14]} Bc6 {[%clk 00:02:12]} {[%emt 00:00:16]} 25. Bxf6 {[%clk 00:03:18]}
{[%emt 00:00:27]} gxf6 {[%clk 00:02:15]} {[%emt 00:00:01]} 26. Qf4 {[%clk
00:03:21]} {[%emt 00:00:02]} Rd7 {[%clk 00:01:42]} {[%emt 00:00:39]} 27. Ng3
{[%clk 00:02:54]} {[%emt 00:00:30]} Rcd8 {[%clk 00:01:40]} {[%emt 00:00:09]} 28.
h4 {[%clk 00:02:56]} {[%emt 00:00:02]} f5 {[%clk 00:00:22]} {[%emt 00:01:23]}
29. exf5 {[%clk 00:02:20]} {[%emt 00:00:41]} Rd4 {[%clk 00:00:00]} {[%emt
00:00:23]} 30. Qg5+ {[%clk 00:02:20]} {[%emt 00:00:02]} Kf8 {[%clk 00:00:00]}
{[%emt 00:00:02]} 1-0

[Event "Rapid Tournament (RAP)"]
[Site "Biel, Switzerland"]
[Date "2026.07.12"]
[Round "9.21"]
[White "El-Mais, Ibaa"]
[Black "Gireada, Lucas"]
[Result "1-0"]
[TimeControl "15 + 5"]
[WhiteTitle "-"]
[BlackTitle "-"]
[WhiteFideId "1312715"]
[BlackFideId "1373544"]
[WhiteElo "2100"]
[BlackElo "1837"]

1. d4 {[%clk 00:15:07]} {[%emt 00:00:02]} Nf6 {[%clk 00:15:09]} {[%emt
00:00:01]} 2. c4 {[%clk 00:15:11]} {[%emt 00:00:01]} g6 {[%clk 00:15:13]}
{[%emt 00:00:03]} 3. Nc3 {[%clk 00:15:15]} d5 {[%clk 00:15:17]} 4. Nf3 {[%clk
00:15:19]} {[%emt 00:00:01]} Bg7 {[%clk 00:15:21]} {[%emt 00:00:02]} 5. Bg5
{[%clk 00:15:22]} O-O {[%clk 00:15:11]} {[%emt 00:00:15]} 6. e3 {[%clk
00:15:09]} {[%emt 00:00:18]} c5 {[%clk 00:14:27]} {[%emt 00:00:49]} 7. Bxf6
{[%clk 00:15:09]} {[%emt 00:00:05]} Bxf6 {[%clk 00:14:13]} {[%emt 00:00:18]} 8.
cxd5 {[%emt 00:01:09]} Qb6 {[%clk 00:13:36]} {[%emt 00:00:42]} 9. Qd2 {[%clk
00:13:54]} {[%emt 00:00:17]} cxd4 {[%clk 00:13:28]} {[%emt 00:00:12]} 10. Nxd4
{[%clk 00:12:53]} {[%emt 00:01:06]} Bxd4 {[%clk 00:13:32]} {[%emt 00:00:02]} 11.
exd4 {[%clk 00:12:43]} {[%emt 00:00:14]} Nd7 {[%clk 00:12:54]} {[%emt
00:00:43]} 12. Bc4 {[%clk 00:12:35]} {[%emt 00:00:14]} Nf6 {[%clk 00:12:50]}
{[%emt 00:00:09]} 13. O-O {[%clk 00:12:35]} {[%emt 00:00:05]} Bf5 {[%clk
00:12:46]} {[%emt 00:00:08]} 14. Rfe1 {[%clk 00:12:32]} {[%emt 00:00:08]} Qc7
{[%clk 00:12:18]} {[%emt 00:00:33]} 15. Bb3 {[%clk 00:12:33]} {[%emt 00:00:04]}
a6 {[%clk 00:12:07]} {[%emt 00:00:17]} 16. Rac1 {[%clk 00:11:47]} {[%emt
00:00:50]} Qd8 {[%clk 00:11:02]} {[%emt 00:01:10]} 17. Re5 {[%clk 00:10:41]}
{[%emt 00:01:11]} Bd7 {[%clk 00:10:11]} {[%emt 00:00:57]} 18. Rce1 {[%clk
00:10:39]} {[%emt 00:00:07]} Re8 {[%clk 00:09:51]} {[%emt 00:00:25]} 19. h3
{[%clk 00:09:53]} {[%emt 00:00:51]} b5 {[%clk 00:09:10]} {[%emt 00:00:46]} 20.
Qe3 {[%clk 00:09:17]} {[%emt 00:00:41]} Kf8 {[%clk 00:08:47]} {[%emt 00:00:29]}
21. Qh6+ {[%clk 00:08:04]} {[%emt 00:01:16]} Kg8 {[%clk 00:08:48]} {[%emt
00:00:04]} 22. Ne4 {[%clk 00:08:05]} {[%emt 00:00:04]} Nxe4 {[%clk 00:08:35]}
{[%emt 00:00:18]} 23. R1xe4 {[%clk 00:07:54]} {[%emt 00:00:15]} 1-0

[Event "Rapid Tournament (RAP)"]
[Site "Biel, Switzerland"]
[Date "2026.07.12"]
[Round "9.22"]
[White "Materia, Matteo"]
[Black "Haugner, Jan"]
[Result "1/2-1/2"]
[TimeControl "15 + 5"]
[WhiteTitle "-"]
[BlackTitle "-"]
[WhiteFideId "45150575"]
[BlackFideId "24655244"]
[WhiteElo "1868"]
[BlackElo "2079"]

1. Nf3 {[%clk 00:15:09]} {[%emt 00:00:01]} d5 {[%clk 00:15:09]} 2. b3 {[%clk
00:15:12]} {[%emt 00:00:01]} Nf6 {[%clk 00:15:11]} {[%emt 00:00:04]} 3. Bb2
{[%clk 00:15:17]} Bf5 {[%clk 00:15:14]} {[%emt 00:00:01]} 4. g3 {[%clk
00:15:11]} {[%emt 00:00:11]} e6 {[%clk 00:15:11]} {[%emt 00:00:08]} 5. Bg2
{[%clk 00:15:14]} {[%emt 00:00:02]} c5 {[%clk 00:15:13]} {[%emt 00:00:04]} 6.
d3 {[%clk 00:15:14]} {[%emt 00:00:05]} Nc6 {[%clk 00:15:15]} {[%emt 00:00:03]}
7. h3 {[%clk 00:15:12]} {[%emt 00:00:06]} h5 {[%clk 00:13:59]} {[%emt
00:01:21]} 8. Nbd2 {[%clk 00:15:07]} {[%emt 00:00:11]} Qc7 {[%clk 00:13:47]}
{[%emt 00:00:17]} 9. a3 {[%clk 00:14:48]} {[%emt 00:00:23]} O-O-O {[%clk
00:13:22]} {[%emt 00:00:30]} 10. e3 {[%clk 00:14:46]} {[%emt 00:00:07]} e5
{[%clk 00:13:12]} {[%emt 00:00:16]} 11. Qe2 {[%clk 00:14:15]} {[%emt 00:00:36]}
e4 {[%clk 00:11:13]} {[%emt 00:02:04]} 12. dxe4 {[%clk 00:14:12]} {[%emt
00:00:07]} Nxe4 {[%clk 00:09:32]} {[%emt 00:01:47]} 13. Nxe4 {[%clk 00:14:02]}
{[%emt 00:00:14]} Bxe4 {[%clk 00:08:51]} {[%emt 00:00:47]} 14. O-O {[%clk
00:13:41]} {[%emt 00:00:26]} f6 {[%clk 00:08:20]} {[%emt 00:00:36]} 15. Rfd1
{[%clk 00:12:27]} {[%emt 00:01:19]} Be7 {[%clk 00:07:06]} {[%emt 00:01:18]} 16.
Nh4 {[%clk 00:10:51]} {[%emt 00:01:42]} Ne5 {[%clk 00:06:20]} {[%emt 00:00:51]}
17. f4 {[%clk 00:10:08]} {[%emt 00:00:48]} Nf7 {[%clk 00:05:10]} {[%emt
00:01:15]} 18. Bxe4 {[%clk 00:09:52]} {[%emt 00:00:21]} dxe4 {[%clk 00:05:14]}
19. Ng6 {[%clk 00:09:39]} {[%emt 00:00:18]} Rh6 {[%clk 00:05:04]} {[%emt
00:00:14]} 20. Nxe7+ {[%clk 00:09:37]} {[%emt 00:00:08]} Qxe7 {[%clk 00:05:09]}
{[%emt 00:00:01]} 21. Rxd8+ {[%clk 00:09:40]} {[%emt 00:00:02]} Nxd8 {[%clk
00:04:40]} {[%emt 00:00:34]} 22. Rd1 {[%clk 00:09:37]} {[%emt 00:00:08]} Qe6
{[%clk 00:04:05]} {[%emt 00:00:40]} 23. Kh2 {[%clk 00:09:20]} {[%emt 00:00:21]}
Rh8 {[%clk 00:03:52]} {[%emt 00:00:18]} 24. Qb5 {[%clk 00:09:18]} {[%emt
00:00:08]} Qc6 {[%clk 00:03:29]} {[%emt 00:00:27]} 25. Qe2 {[%clk 00:08:04]}
{[%emt 00:01:19]} Nf7 {[%clk 00:02:57]} {[%emt 00:00:37]} 26. Qc4 {[%clk
00:07:41]} {[%emt 00:00:30]} Nd6 {[%clk 00:02:03]} {[%emt 00:00:58]} 27. Qe6+
{[%clk 00:07:40]} {[%emt 00:00:06]} Kc7 {[%clk 00:02:08]} 28. Qe7+ {[%clk
00:06:24]} {[%emt 00:01:21]} Qd7 {[%clk 00:02:10]} {[%emt 00:00:03]} 29. Qxd7+
{[%clk 00:06:27]} {[%emt 00:00:02]} Kxd7 {[%clk 00:02:14]} 30. Be5 {[%clk
00:05:25]} {[%emt 00:01:07]} fxe5 {[%clk 00:02:18]} {[%emt 00:00:02]} 31. fxe5
{[%clk 00:05:29]} Ke6 {[%clk 00:02:21]} {[%emt 00:00:01]} 32. Rxd6+ {[%clk
00:05:15]} {[%emt 00:00:19]} Kxe5 {[%clk 00:02:24]} {[%emt 00:00:01]} 33. Rd7
{[%clk 00:05:19]} {[%emt 00:00:02]} Rf8 {[%clk 00:02:22]} {[%emt 00:00:07]} 34.
Kg2 {[%clk 00:05:22]} {[%emt 00:00:02]} Rf3 {[%clk 00:02:24]} {[%emt 00:00:03]}
35. Rxg7 {[%clk 00:05:12]} {[%emt 00:00:15]} Rxe3 {[%clk 00:02:28]} {[%emt
00:00:02]} 36. Rxb7 {[%clk 00:05:12]} {[%emt 00:00:04]} Re2+ {[%clk 00:02:28]}
{[%emt 00:00:05]} 37. Kf1 {[%clk 00:05:15]} {[%emt 00:00:02]} Rxc2 {[%clk
00:02:30]} {[%emt 00:00:02]} 38. Rxa7 {[%clk 00:05:19]} {[%emt 00:00:02]} Kd4
{[%clk 00:02:29]} {[%emt 00:00:06]} 39. g4 {[%clk 00:05:04]} {[%emt 00:00:20]}
hxg4 {[%clk 00:02:25]} {[%emt 00:00:09]} 40. hxg4 {[%clk 00:05:08]} {[%emt
00:00:01]} Ke3 {[%clk 00:02:20]} {[%emt 00:00:10]} 41. g5 {[%clk 00:05:08]}
{[%emt 00:00:05]} Rf2+ {[%clk 00:02:20]} {[%emt 00:00:04]} 42. Kg1 {[%clk
00:05:09]} {[%emt 00:00:05]} Rf5 {[%clk 00:02:24]} {[%emt 00:00:01]} 43. Rg7
{[%clk 00:04:45]} {[%emt 00:00:28]} Ke2 {[%clk 00:01:58]} {[%emt 00:00:32]} 44.
g6 {[%clk 00:04:38]} {[%emt 00:00:12]} Rg5+ {[%clk 00:02:00]} {[%emt 00:00:02]}
45. Kh2 {[%clk 00:04:42]} {[%emt 00:00:01]} e3 {[%clk 00:02:01]} {[%emt
00:00:04]} 46. Kh3 {[%clk 00:03:58]} {[%emt 00:00:50]} Kf3 {[%clk 00:01:56]}
{[%emt 00:00:10]} 47. Kh4 {[%clk 00:04:02]} Rg4+ {[%clk 00:01:33]} {[%emt
00:00:29]} 48. Kh5 {[%clk 00:04:00]} {[%emt 00:00:06]} e2 {[%clk 00:01:25]}
{[%emt 00:00:12]} 49. Rf7+ {[%clk 00:03:55]} {[%emt 00:00:10]} Kg3 {[%clk
00:00:21]} {[%emt 00:01:10]} 50. Re7 {[%clk 00:03:53]} {[%emt 00:00:07]} Rh4+
{[%clk 00:00:16]} {[%emt 00:00:10]} 51. Kg5 {[%clk 00:03:55]} {[%emt 00:00:03]}
Rg4+ {[%clk 00:00:19]} {[%emt 00:00:03]} 52. Kh5 {[%clk 00:03:29]} {[%emt
00:00:30]} Rh4+ {[%clk 00:00:22]} {[%emt 00:00:02]} 53. Kg5 {[%clk 00:03:33]}
Rg4+ {[%clk 00:00:26]} {[%emt 00:00:01]} 54. Kh5 {[%clk 00:03:35]} {[%emt
00:00:02]} Rh4+ {[%clk 00:00:13]} {[%emt 00:00:18]} 1/2-1/2

[Event "Rapid Tournament (RAP)"]
[Site "Biel, Switzerland"]
[Date "2026.07.12"]
[Round "9.23"]
[White "Tkhoruk, Roman"]
[Black "Alrefae, Ahmad"]
[Result "1-0"]
[TimeControl "15 + 5"]
[WhiteTitle "-"]
[BlackTitle "-"]
[WhiteFideId "34161589"]
[BlackFideId "10306510"]
[WhiteElo "2076"]
[BlackElo "1797"]

1. e4 {[%clk 00:15:10]} c5 {[%clk 00:15:09]} 2. Nf3 {[%clk 00:15:13]} {[%emt
00:00:01]} d6 {[%clk 00:15:14]} {[%emt 00:00:01]} 3. Bb5+ {[%clk 00:15:17]} Nd7
{[%clk 00:15:15]} {[%emt 00:00:04]} 4. O-O {[%clk 00:15:20]} {[%emt 00:00:02]}
Ngf6 {[%clk 00:15:19]} {[%emt 00:00:01]} 5. Re1 {[%clk 00:15:19]} {[%emt
00:00:05]} a6 {[%clk 00:15:16]} {[%emt 00:00:08]} 6. Bf1 {[%clk 00:15:22]}
{[%emt 00:00:02]} Qc7 {[%clk 00:15:09]} {[%emt 00:00:13]} 7. c3 {[%clk
00:15:20]} {[%emt 00:00:06]} c4 {[%clk 00:14:25]} {[%emt 00:00:50]} 8. d4
{[%clk 00:14:52]} {[%emt 00:00:32]} cxd3 {[%clk 00:14:27]} {[%emt 00:00:03]} 9.
Bxd3 {[%clk 00:14:55]} {[%emt 00:00:02]} g6 {[%clk 00:14:26]} {[%emt 00:00:06]}
10. Nbd2 {[%clk 00:14:58]} {[%emt 00:00:02]} Bg7 {[%clk 00:14:30]} {[%emt
00:00:01]} 11. Nf1 {[%clk 00:14:53]} {[%emt 00:00:11]} O-O {[%clk 00:14:33]}
{[%emt 00:00:02]} 12. Ng3 {[%clk 00:14:36]} {[%emt 00:00:22]} b5 {[%clk
00:14:20]} {[%emt 00:00:18]} 13. a4 {[%clk 00:14:28]} {[%emt 00:00:14]} Rb8
{[%clk 00:14:16]} {[%emt 00:00:09]} 14. axb5 {[%clk 00:14:10]} {[%emt
00:00:22]} axb5 {[%clk 00:14:20]} {[%emt 00:00:01]} 15. Nd4 {[%clk 00:14:01]}
{[%emt 00:00:14]} b4 {[%clk 00:14:03]} {[%emt 00:00:22]} 16. c4 {[%clk
00:12:46]} {[%emt 00:01:20]} Nc5 {[%clk 00:13:00]} {[%emt 00:01:08]} 17. b3
{[%clk 00:11:29]} {[%emt 00:01:22]} h5 {[%clk 00:12:23]} {[%emt 00:00:42]} 18.
Bb2 {[%clk 00:10:46]} {[%emt 00:00:48]} h4 {[%clk 00:12:26]} {[%emt 00:00:01]}
19. Nf1 {[%clk 00:10:46]} {[%emt 00:00:06]} h3 {[%clk 00:12:08]} {[%emt
00:00:23]} 20. g3 {[%clk 00:10:41]} {[%emt 00:00:09]} Bb7 {[%clk 00:11:08]}
{[%emt 00:01:04]} 21. f3 {[%clk 00:10:33]} {[%emt 00:00:15]} Nfd7 {[%clk
00:10:38]} {[%emt 00:00:35]} 22. Ne3 {[%clk 00:10:10]} {[%emt 00:00:27]} Qb6
{[%clk 00:08:48]} {[%emt 00:01:56]} 23. Qc2 {[%clk 00:09:24]} {[%emt 00:00:50]}
Nxd3 {[%clk 00:08:24]} {[%emt 00:00:29]} 24. Qxd3 {[%clk 00:09:26]} {[%emt
00:00:04]} Ne5 {[%clk 00:08:01]} {[%emt 00:00:27]} 25. Qc2 {[%clk 00:08:15]}
{[%emt 00:01:16]} f5 {[%clk 00:06:57]} {[%emt 00:01:10]} 26. exf5 {[%clk
00:07:41]} {[%emt 00:00:38]} Qxd4 {[%clk 00:06:51]} {[%emt 00:00:11]} 27. Bxd4
{[%clk 00:07:40]} {[%emt 00:00:07]} Nxf3+ {[%clk 00:06:55]} 28. Kf1 {[%clk
00:06:42]} {[%emt 00:01:02]} Nxe1 {[%clk 00:06:15]} {[%emt 00:00:46]} 29. Rxe1
{[%clk 00:06:40]} {[%emt 00:00:07]} Bxd4 {[%clk 00:06:19]} {[%emt 00:00:01]} 30.
g4 {[%clk 00:06:11]} {[%emt 00:00:34]} gxf5 {[%clk 00:05:50]} {[%emt 00:00:34]}
31. gxf5 {[%clk 00:05:56]} {[%emt 00:00:20]} Kh8 {[%clk 00:05:06]} {[%emt
00:00:49]} 32. Qd1 {[%clk 00:05:22]} {[%emt 00:00:39]} Bg2+ {[%clk 00:04:56]}
{[%emt 00:00:16]} 33. Nxg2 {[%clk 00:04:45]} {[%emt 00:00:41]} Rxf5+ {[%clk
00:04:54]} {[%emt 00:00:07]} 34. Ke2 {[%clk 00:04:49]} {[%emt 00:00:01]} Bc5
{[%clk 00:03:49]} {[%emt 00:01:10]} 35. Ne3 {[%clk 00:04:28]} {[%emt 00:00:26]}
Re5 {[%clk 00:03:52]} {[%emt 00:00:03]} 36. Kd3 {[%clk 00:04:28]} {[%emt
00:00:05]} Rg8 {[%clk 00:03:31]} {[%emt 00:00:25]} 37. Qf3 {[%clk 00:04:24]}
{[%emt 00:00:08]} 1-0

[Event "Rapid Tournament (RAP)"]
[Site "Biel, Switzerland"]
[Date "2026.07.12"]
[Round "9.24"]
[White "Grzeskowiak, Antoni"]
[Black "Hornung, Hans"]
[Result "1-0"]
[TimeControl "15 + 5"]
[WhiteTitle "-"]
[BlackTitle "-"]
[WhiteFideId "41855531"]
[BlackFideId "4615140"]
[WhiteElo "1844"]
[BlackElo "2040"]

1. d4 {[%clk 00:15:08]} {[%emt 00:00:02]} Nf6 {[%clk 00:14:57]} {[%emt
00:00:04]} 2. Nf3 {[%clk 00:15:10]} {[%emt 00:00:12]} d6 {[%clk 00:15:00]}
{[%emt 00:00:03]} 3. Bf4 {[%clk 00:15:12]} {[%emt 00:00:02]} g6 {[%clk
00:14:54]} {[%emt 00:00:11]} 4. e3 {[%clk 00:15:15]} {[%emt 00:00:03]} Bg7
{[%clk 00:14:52]} {[%emt 00:00:06]} 5. Nc3 {[%clk 00:15:18]} {[%emt 00:00:03]}
O-O {[%clk 00:14:02]} {[%emt 00:00:54]} 6. Be2 {[%clk 00:15:19]} {[%emt
00:00:05]} b6 {[%clk 00:13:29]} {[%emt 00:00:38]} 7. h3 {[%clk 00:14:57]}
{[%emt 00:00:26]} Bb7 {[%clk 00:13:30]} {[%emt 00:00:05]} 8. O-O {[%clk
00:14:55]} {[%emt 00:00:07]} Nbd7 {[%clk 00:13:07]} {[%emt 00:00:26]} 9. a4
{[%clk 00:14:52]} {[%emt 00:00:09]} a6 {[%clk 00:13:03]} {[%emt 00:00:10]} 10.
Bc4 {[%clk 00:14:23]} {[%emt 00:00:34]} e6 {[%clk 00:12:39]} {[%emt 00:00:27]}
11. Re1 {[%clk 00:14:10]} {[%emt 00:00:20]} Qe7 {[%clk 00:12:40]} {[%emt
00:00:04]} 12. e4 {[%clk 00:13:51]} {[%emt 00:00:24]} e5 {[%clk 00:12:24]}
{[%emt 00:00:20]} 13. dxe5 {[%clk 00:13:40]} {[%emt 00:00:17]} dxe5 {[%clk
00:12:12]} {[%emt 00:00:17]} 14. Bg5 {[%clk 00:13:33]} {[%emt 00:00:12]} h6
{[%clk 00:11:56]} {[%emt 00:00:21]} 15. Bh4 {[%clk 00:12:52]} {[%emt 00:00:46]}
g5 {[%clk 00:11:27]} {[%emt 00:00:34]} 16. Bg3 {[%clk 00:12:37]} {[%emt
00:00:20]} Nh5 {[%clk 00:11:10]} {[%emt 00:00:21]} 17. Bxe5 {[%clk 00:11:39]}
{[%emt 00:01:04]} Bxe5 {[%clk 00:10:18]} {[%emt 00:00:56]} 18. Nxe5 {[%clk
00:10:45]} {[%emt 00:00:59]} Nxe5 {[%clk 00:10:17]} {[%emt 00:00:07]} 19. Bd5
{[%clk 00:10:26]} {[%emt 00:00:24]} c6 {[%clk 00:09:50]} {[%emt 00:00:31]} 20.
Qxh5 {[%clk 00:10:25]} {[%emt 00:00:07]} cxd5 {[%clk 00:09:52]} {[%emt
00:00:02]} 21. Qxh6 {[%clk 00:10:04]} {[%emt 00:00:26]} Ng6 {[%clk 00:08:34]}
{[%emt 00:01:23]} 22. exd5 {[%clk 00:09:47]} {[%emt 00:00:23]} Qf6 {[%clk
00:07:58]} {[%emt 00:00:40]} 23. Ne4 {[%clk 00:09:45]} {[%emt 00:00:07]} Qxb2
{[%clk 00:07:39]} {[%emt 00:00:24]} 24. c3 {[%clk 00:09:17]} {[%emt 00:00:34]}
Qc2 {[%clk 00:06:33]} {[%emt 00:01:09]} 25. Nf6# {[%clk 00:09:15]} {[%emt
00:00:07]} 1-0